bitfinex-derivatives/quotes_ETHF0:USTF0_20250323
["timestamp","ask_amount","ask_price","bid_price","bid_amount"]
[1742728952046,0.08636918,2017.2,2015.5,3.2078]
[1742728952047,1.2682,2016.1,2015.5,5.7078]
[1742728952349,1.2682,2016.1,2015.9,3.2078]
[1742728952551,1.2831,2016.0,2015.9,3.2078]
[1742728952757,1.2831,2016.0,2015.9,2.14946413]
[1742728952942,1.2831,2016.0,2015.4,8.5111]
[1742728953254,1.27563587,2015.9,2015.5,1.3714]
[1742728953452,1.27563587,2015.9,2015.6,3.237]
[1742728953653,1.27563587,2015.9,2015.7,1.3847]
[1742728954252,1.27563587,2015.9,2015.7,4.5925]
[1742728954656,1.27563587,2015.9,2015.8,1.3847]
[1742728956154,1.27563587,2015.9,2015.8,2.0477]
[1742728957960,1.27563587,2015.9,2015.8,5.2827]
[1742728958565,0.00743587,2015.9,2015.8,5.2827]
[1742728960568,0.00743587,2015.9,2015.8,5.2877]
[1742728962966,0.00743587,2015.9,2015.8,5.6926299]
[1742728963266,0.00743587,2015.9,2015.8,5.2877]
[1742728964770,0.00743587,2015.9,2015.8,8.4955]
[1742728967067,0.00743587,2015.9,2015.8,8.89075934]
[1742728968776,4.5286,2016.4,2015.8,8.89075934]
[1742728968967,1.3984,2016.3,2015.9,1.9905]
[1742728969168,1.3984,2016.3,2016.0,4.5877]
[1742728969475,1.3984,2016.3,2016.1,4.5625]
[1742728969667,1.3984,2016.3,2016.2,2.0512]
[1742728969867,1.3984,2016.3,2016.2,2.687]
[1742728970870,1.3984,2016.3,2016.2,43.487]
[1742728971578,1.3984,2016.3,2016.2,46.718]
[1742728973582,0.00743587,2016.4,2016.2,46.718]
[1742728973780,1.37083587,2016.4,2016.3,1.2815]
[1742728978084,1.37083587,2016.4,2016.2,4.5633]
[1742728978284,1.3181,2016.3,2016.2,5.202]
[1742728978584,1.3181,2016.3,2016.2,46.002]
[1742728979894,0.662,2016.3,2016.2,46.002]
[1742728981791,1.37083587,2016.4,2016.2,46.002]
[1742728981995,1.37083587,2016.4,2016.3,1.3925]
[1742728982184,1.37083587,2016.4,2016.3,2.0688]
[1742728986483,1.3634,2016.4,2016.3,2.0688]
[1742728986696,0.22799103,2016.8,2016.3,4.5688]
[1742728986895,3.2078,2017.1,2016.6,3.2078]
[1742728987091,3.2078,2017.1,2016.7,5.2401]
[1742728987292,3.2078,2017.1,2016.8,1.3298]
[1742728987586,3.219,2017.5,2016.8,1.3298]
[1742728987587,6.4268,2017.5,2016.8,1.3298]
[1742728987992,0.00495722,2017.2,2016.8,1.3298]
[1742728988189,0.00495722,2017.2,2016.9,3.2078]
[1742728988394,0.00495722,2017.2,2017.0,1.3298]
[1742728989899,1.37195722,2017.2,2017.0,1.3298]
[1742728990198,2.02565722,2017.2,2017.0,1.3298]
[1742728990498,1.3457,2017.1,2017.0,1.3298]
[1742728991599,0.65865722,2017.2,2017.0,1.997]
[1742728991600,0.00495722,2017.2,2017.0,1.997]
[1742728991786,0.00495722,2017.2,2017.1,5.1392]
[1742728992898,3.8771,2017.8,2017.1,5.1392]
[1742728993102,1.3457,2017.7,2017.3,3.2078]
[1742728993294,1.3457,2017.7,2017.4,4.5568]
[1742728993490,1.3457,2017.7,2017.5,42.81]
[1742728993694,1.3457,2017.7,2017.6,1.3338]
[1742728994400,1.3457,2017.7,2017.4,3.87243587]
[1742728994401,1.3457,2017.7,2017.4,0.00743587]
[1742728994600,0.6649,2017.6,2017.4,0.00743587]
[1742728994801,1.3296,2017.5,2017.4,0.00743587]
[1742728995595,1.3296,2017.5,2017.4,1.34123587]
[1742728998904,1.3296,2017.5,2017.4,2.00223587]
[1742728999202,3.8771,2017.8,2017.4,2.00223587]
[1742728999404,1.3759,2017.7,2017.5,1.2842]
[1742729003907,1.3759,2017.7,2017.5,4.4992]
[1742729004304,3.2078,2018.1,2017.6,4.5992]
[1742729004601,1.3692,2018.0,2017.7,5.247]
[1742729004802,1.3692,2018.0,2017.8,1.3914]
[1742729005508,2.0643,2018.0,2017.8,1.3914]
[1742729005711,1.2647,2017.9,2017.8,1.3914]
[1742729007611,1.2647,2017.9,2017.7,0.6406]
[1742729007905,0.638,2017.8,2017.6,3.2078]
[1742729008111,1.2647,2017.7,2017.6,3.2078]
[1742729008304,1.9299,2017.7,2017.6,3.2078]
[1742729008709,5.1377,2017.7,2017.4,1.28993587]
[1742729009011,1.387,2017.6,2017.4,1.28993587]
[1742729010413,3.2078,2017.7,2017.4,1.28993587]
[1742729010611,4.5948,2017.7,2017.4,1.28993587]
[1742729010912,1.387,2017.6,2017.4,1.28993587]
[1742729011609,0.638,2017.8,2017.4,1.28993587]
[1742729011806,1.9031,2017.8,2017.5,3.218]
[1742729012012,1.9031,2017.8,2017.6,1.2811]
[1742729012212,1.2651,2017.7,2017.6,1.9565]
[1742729018420,1.2651,2017.7,2017.6,1.2811]
[1742729020222,1.9583,2017.7,2017.6,1.2811]
[1742729022611,1.9583,2017.7,2017.4,0.00743587]
[1742729022822,1.324,2017.6,2017.4,1.34423587]
[1742729024318,1.324,2017.6,2017.4,0.00743587]
[1742729024825,6.4228,2017.5,2016.9,6.4228]
[1742729025023,1.9484,2017.4,2017.0,1.3238]
[1742729025215,1.3037,2017.3,2017.0,42.1238]
[1742729025421,1.3037,2017.3,2017.1,2.0011]
[1742729025625,1.3037,2017.3,2017.2,1.3238]
[1742729028327,1.3037,2017.3,2017.0,40.80743587]
[1742729028523,1.3037,2017.3,2017.1,1.3388]
[1742729028729,1.3037,2017.3,2017.0,1.34623587]
[1742729029022,1.3037,2017.3,2017.1,1.3388]
[1742729030729,4.5137,2017.3,2017.1,1.3388]
[1742729031329,1.3344,2017.2,2017.1,1.3388]
[1742729037833,1.3344,2017.2,2017.0,0.00743587]
[1742729038129,0.678,2017.1,2017.0,1.36293587]
[1742729038332,0.678,2017.1,2017.0,0.00743587]
[1742729038534,0.678,2017.1,2017.0,1.36293587]
[1742729039231,1.3344,2017.2,2017.0,1.36293587]
[1742729039432,0.6753,2017.1,2017.0,0.00743587]
[1742729041233,3.8773,2017.1,2017.0,0.00743587]
[1742729041831,3.8773,2017.1,2016.6,0.6437]
[1742729041832,6.3773,2017.1,2016.6,0.6437]
[1742729042134,3.2078,2016.8,2016.6,0.6437]
[1742729042432,3.2078,2016.8,2016.7,1.3823]
[1742729043135,3.203,2016.9,2016.7,1.3823]
[1742729046731,3.201,2016.9,2016.7,1.3823]
[1742729051041,3.2078,2017.1,2016.7,1.3823]
[1742729051238,6.4058,2017.1,2016.7,1.3823]
[1742729052237,3.2078,2017.1,2016.7,1.3823]
[1742729053738,3.2078,2017.1,2016.7,4.5901]
[1742729054224,3.2078,2017.1,2016.8,1.3242]
[1742729054633,3.2078,2017.1,2016.9,0.6385]
[1742729054835,3.2078,2017.1,2017.0,1.959]
[1742729059744,4.5939,2017.1,2017.0,1.959]
[1742729068749,3.2078,2017.1,2017.0,1.959]
[1742729069144,4.4776,2017.1,2017.0,1.959]
[1742729072451,4.4776,2017.1,2017.0,1.3242]
[1742729072851,5.1567,2017.1,2017.0,1.3242]
[1742729073859,5.1567,2017.1,2016.9,0.6385]
[1742729074156,1.3558,2017.0,2016.9,1.9922]
[1742729079258,1.3558,2017.0,2016.9,1.3537]
[1742729079457,1.9999,2017.0,2016.9,1.3537]
[1742729081857,1.3558,2017.0,2016.9,1.3537]
[1742729089662,3.2078,2017.1,2016.9,1.3537]
[1742729089866,4.5986,2017.1,2017.0,0.6551]
[1742729090065,3.2078,2017.1,2017.0,0.6551]
[1742729092767,3.175,2017.4,2017.0,0.6551]
[1742729093062,3.175,2017.4,2017.1,2.0608]
[1742729093253,3.175,2017.4,2017.2,1.3746]
[1742729093765,7.06423587,2017.5,2017.2,1.3746]
[1742729093958,7.06423587,2017.5,2017.3,0.6477]
[1742729094266,3.21523587,2017.5,2017.4,1.2914]
[1742729094665,3.21523587,2017.5,2017.4,1.9784]
[1742729096064,0.00743587,2017.5,2017.4,1.9784]
[1742729098063,0.00743587,2017.5,2017.4,2.37354597]
[1742729098567,0.00743587,2017.5,2017.4,43.17354597]
[1742729099265,7.0454,2018.1,2017.4,43.17354597]
[1742729099466,7.0454,2018.1,2017.5,4.492]
[1742729099667,7.0454,2018.1,2017.6,1.317]
[1742729100073,0.675,2018.0,2017.6,1.317]
[1742729100458,0.68243587,2018.0,2017.6,1.32443587]
[1742729102574,0.68243587,2018.0,2017.6,1.97453587]
[1742729102964,0.68243587,2018.0,2017.7,1.3228]
[1742729104479,3.174,2017.9,2017.6,0.00743587]
[1742729104683,3.2078,2017.8,2017.6,0.00743587]
[1742729104887,0.6684,2017.7,2017.6,0.00743587]
[1742729105184,1.3645,2017.7,2017.6,0.00743587]
[1742729106282,4.5385,2017.7,2017.6,0.00743587]
[1742729110295,5.8368,2017.7,2017.6,0.00743587]
[1742729111797,5.8368,2017.7,2017.3,0.6501]
[1742729112012,3.2078,2017.4,2017.1,1.3138]
[1742729112187,1.9815,2017.3,2017.0,1.325]
[1742729112387,1.2907,2017.2,2017.1,1.3138]
[1742729114790,4.4647,2017.2,2017.1,1.3138]
[1742729118999,1.2907,2017.2,2017.1,1.3138]
[1742729119503,1.3523,2017.3,2017.1,1.3138]
[1742729119800,6.3828,2017.4,2017.1,1.3138]
[1742729120202,3.2078,2017.4,2017.1,1.3138]
[1742729120701,1.3523,2017.5,2017.1,4.4888]
[1742729121094,1.3523,2017.5,2017.2,1.3116]
[1742729121399,1.3523,2017.5,2017.3,0.6336]
[1742729121597,1.3523,2017.5,2017.4,1.3116]
[1742729124097,3.2078,2017.6,2017.4,1.3116]
[1742729130301,3.2078,2017.9,2017.4,1.3116]
[1742729130500,4.5374,2017.9,2017.4,1.3116]
[1742729130806,1.3296,2017.8,2017.5,40.8]
[1742729131009,1.3296,2017.8,2017.6,1.9641]
[1742729131212,0.00743587,2018.0,2017.7,1.2839]
[1742729131408,0.00743587,2018.0,2017.7,4.4599]
[1742729131905,0.00743587,2018.0,2017.8,1.2839]
[1742729132308,0.00743587,2018.0,2017.9,0.6708]
[1742729133699,0.00743587,2018.0,2017.9,7.0566]
[1742729136517,3.2078,2019.0,2017.9,9.5566]
[1742729136703,3.2078,2019.6,2018.8,3.2078]
[1742729136908,1.3263,2019.4,2018.9,5.3549]
[1742729137108,1.3263,2019.4,2019.0,40.8]
[1742729137318,1.3263,2019.4,2019.1,4.4931]
[1742729137502,1.3263,2019.4,2019.2,1.2853]
[1742729138108,1.9694,2019.4,2019.2,1.2853]
[1742729138406,3.2078,2019.3,2019.0,0.00743587]
[1742729138606,3.578,2019.2,2019.0,0.00743587]
[1742729138806,4.9043,2019.2,2019.0,0.00743587]
[1742729139011,1.3263,2019.1,2018.6,1.2853]
[1742729139809,3.2078,2018.9,2018.3,0.6525]
[1742729140013,5.5005,2018.8,2018.4,1.3469]
[1742729140219,1.2935,2018.7,2018.4,1.35433587]
[1742729140910,1.2935,2018.7,2018.4,0.00743587]
[1742729142114,0.6923,2018.6,2018.4,0.00743587]
[1742729142314,1.2935,2018.5,2018.4,0.00743587]
[1742729143315,1.2935,2018.5,2018.4,1.95803587]
[1742729144116,49.0138,2019.2,2018.4,1.95803587]
[1742729144315,1.2624,2018.8,2018.6,3.2078]
[1742729144507,1.2624,2018.8,2018.7,1.2618]
[1742729144709,49.0138,2019.2,2018.7,1.2618]
[1742729144915,1.2624,2019.0,2018.8,0.6888]
[1742729145129,1.2624,2019.0,2018.9,1.2618]
[1742729145326,6.7738,2019.2,2018.9,1.2618]
[1742729145615,1.3835,2019.1,2018.9,1.2618]
[1742729145814,0.6357,2019.0,2018.9,1.2618]
[1742729146124,0.6357,2019.0,2018.6,3.2078]
[1742729146418,1.3835,2018.9,2018.7,1.296]
[1742729149421,0.6675,2019.3,2018.7,1.296]
[1742729149614,0.6675,2019.3,2018.9,3.2078]
[1742729149615,1.3366,2019.1,2018.9,3.2078]
[1742729149816,1.3366,2019.1,2019.0,1.381]
[1742729150218,4.2062,2019.4,2019.0,1.381]
[1742729150219,0.6432,2019.4,2019.0,1.381]
[1742729150409,1.3366,2019.3,2019.0,2.0366]
[1742729150624,1.3366,2019.3,2018.9,3.2078]
[1742729150827,0.6798,2019.2,2018.9,3.2078]
[1742729151017,1.3366,2019.1,2018.9,3.2078]
[1742729151218,0.6432,2019.0,2018.9,3.2078]
[1742729154525,1.3366,2019.1,2018.9,3.2078]
[1742729154729,1.3366,2019.1,2019.0,1.3178]
[1742729155626,1.3366,2019.1,2019.0,1.9676]
[1742729157430,3.21523587,2019.5,2019.0,1.9676]
[1742729157631,1.275,2019.3,2019.1,2.0181]
[1742729157831,1.275,2019.3,2019.2,1.3359]
[1742729158131,1.275,2019.3,2019.2,4.5437]
[1742729158334,1.275,2019.3,2019.2,1.3359]
[1742729159623,1.275,2019.3,2019.0,0.6498]
[1742729159824,1.275,2019.3,2019.0,1.3359]
[1742729160027,4.932,2019.3,2019.0,1.3359]
[1742729160535,1.3737,2019.2,2018.9,3.2078]
[1742729160732,0.6328,2019.1,2018.9,3.2078]
[1742729160928,1.3499,2019.0,2018.9,3.2078]
[1742729162730,3.657,2019.3,2018.9,3.2078]
[1742729162931,1.3499,2019.2,2019.0,1.3171]
[1742729163122,1.3499,2019.2,2019.1,0.6518]
[1742729163328,5.0069,2019.3,2019.1,1.3305]
[1742729163630,5.0069,2019.3,2019.2,1.3171]
[1742729164129,1.3499,2019.3,2019.2,1.3171]
[1742729164327,3.21523587,2019.5,2019.2,4.5249]
[1742729164528,1.3795,2019.4,2019.2,4.5249]
[1742729164728,1.3795,2019.4,2019.3,1.3753]
[1742729165032,3.21523587,2019.5,2019.3,1.3753]
[1742729165224,1.3795,2019.4,2019.3,1.3753]
[1742729167539,0.00743587,2019.5,2019.3,1.3753]
[1742729167733,1.27443587,2019.5,2019.4,0.6816]
[1742729168936,0.00743587,2019.5,2019.4,0.6816]
[1742729173336,0.00743587,2019.5,2019.4,2.0111]
[1742729177262,0.00743587,2019.5,2019.4,1.3295]
[1742729177655,0.66753587,2019.5,2019.4,1.3295]
[1742729178055,2.04883587,2019.5,2019.4,1.3295]
[1742729178365,1.38873587,2019.5,2019.4,1.3295]
[1742729179162,0.00743587,2019.5,2019.4,1.3295]
[1742729179468,0.00743587,2019.5,2019.4,42.1295]
[1742729189873,0.00743587,2019.5,2019.4,45.6675]
[1742729190069,1.3145,2019.8,2019.4,45.6675]
[1742729190268,1.3145,2019.8,2019.6,3.2078]
[1742729190469,1.3145,2019.8,2019.7,1.3907]
[1742729191175,3.2078,2020.4,2019.7,1.3907]
[1742729191362,0.00743587,2020.0,2019.9,3.2078]
[1742729191569,0.00743587,2020.0,2019.9,4.5814]
[1742729192477,3.58743587,2020.0,2019.6,3.2078]
[1742729192774,1.9633,2019.9,2019.7,1.3736]
[1742729192974,1.3118,2019.8,2019.7,1.3736]
[1742729193373,0.00743587,2020.0,2019.7,1.3736]
[1742729193574,0.00743587,2020.0,2019.8,1.3037]
[1742729193769,0.00743587,2020.0,2019.9,1.3736]
[1742729194475,0.00743587,2020.0,2019.9,4.5814]
[1742729196173,3.2078,2020.6,2019.9,4.5814]
[1742729196174,3.2078,2021.8,2019.9,16.8774]
[1742729196378,3.2078,2021.8,2021.0,3.2078]
[1742729196668,3.2078,2021.2,2021.1,42.1478]
[1742729196874,3.2078,2021.2,2020.8,0.6612]
[1742729197073,0.1,2021.0,2020.8,2.009]
[1742729197266,4.5053,2020.9,2020.8,1.35523587]
[1742729197471,4.5053,2020.9,2020.8,0.00743587]
[1742729197669,7.0053,2020.9,2020.3,0.6612]
[1742729197880,1.2975,2020.8,2020.4,1.3018]
[1742729198181,0.1,2020.6,2020.4,1.3018]
[1742729198374,1.9801,2020.5,2020.4,1.3018]
[1742729198675,8.9319,2020.5,2020.1,3.8982]
[1742729198978,1.2975,2020.4,2020.2,0.00743587]
[1742729199174,0.1,2020.3,2020.2,0.00743587]
[1742729199779,0.759,2020.3,2020.2,0.00743587]
[1742729200570,0.1,2020.3,2020.2,0.00743587]
[1742729201278,0.1,2020.3,2020.2,1.29593587]
[1742729202979,0.1,2020.3,2020.2,42.09593587]
[1742729203881,0.1,2020.3,2020.2,1.29593587]
[1742729206173,1.4811,2020.3,2020.2,1.29593587]
[1742729206975,0.1,2020.3,2020.2,1.29593587]
[1742729207276,0.1,2020.3,2020.2,0.00743587]
[1742729207984,3.9214,2020.3,2019.7,3.2078]
[1742729208177,0.1,2020.0,2019.7,3.2078]
[1742729208377,0.1,2020.0,2019.8,1.3746]
[1742729208577,0.1,2020.0,2019.9,1.2946]
[1742729213084,0.1,2020.0,2019.9,42.0946]
[1742729214384,0.1,2020.0,2019.9,40.8]
[1742729215288,1.399,2020.0,2019.9,40.8]
[1742729215682,2.0883,2020.0,2019.9,40.8]
[1742729216086,1.399,2020.0,2019.9,40.8]
[1742729216284,1.399,2020.0,2019.9,0.6655]
[1742729219695,0.1,2020.0,2019.9,0.6655]
[1742729219898,1.3681,2020.2,2019.9,0.6655]
[1742729220100,1.3681,2020.2,2020.0,1.359]
[1742729220391,1.3545,2020.1,2019.7,3.90133587]
[1742729220692,1.3681,2020.0,2019.9,40.8]
[1742729221088,1.3681,2020.0,2019.8,1.359]
[1742729221487,2.30597801,2020.0,2019.8,42.159]
[1742729221996,1.3545,2020.1,2019.7,4.58023587]
[1742729222196,1.3545,2020.1,2019.8,1.315]
[1742729223192,1.3545,2020.1,2019.7,44.01523587]
[1742729223798,1.3545,2020.1,2019.7,3.21523587]
[1742729225898,3.2078,2019.9,2019.7,0.00743587]
[1742729226196,3.676,2019.8,2019.4,3.2078]
[1742729226387,0.6623,2019.7,2019.4,3.2078]
[1742729228097,0.6623,2019.7,2019.4,4.5587]
[1742729228996,3.663,2019.7,2019.5,1.3509]
[1742729230393,3.663,2019.7,2019.4,3.2078]
[1742729230698,3.663,2019.7,2019.4,4.5587]
[1742729230900,3.663,2019.7,2019.5,1.3305]
[1742729231598,3.663,2019.7,2019.4,3.2078]
[1742729232500,0.6676,2019.6,2019.4,3.2078]
[1742729232690,0.6837,2019.5,2019.4,3.2078]
[1742729232893,0.6837,2019.5,2019.4,4.5383]
[1742729233700,0.6676,2019.6,2019.4,4.5383]
[1742729234000,4.35413587,2019.7,2019.5,1.295]
[1742729234203,4.35413587,2019.7,2019.5,1.96]
[1742729234402,4.35413587,2019.7,2019.5,1.295]
[1742729234602,0.6801,2019.6,2019.5,1.295]
[1742729234804,0.6801,2019.6,2019.4,3.2078]
[1742729235099,0.6801,2019.6,2019.4,4.5028]
[1742729235302,0.6801,2019.6,2019.5,1.295]
[1742729235703,0.6801,2019.6,2019.4,4.5028]
[1742729236104,0.6801,2019.6,2019.4,3.2078]
[1742729238302,3.1801,2019.6,2019.4,3.2078]
[1742729238506,3.1801,2019.6,2019.3,0.00743587]
[1742729238706,0.6801,2019.6,2019.3,0.00743587]
[1742729239312,3.1801,2019.6,2019.3,0.00743587]
[1742729239697,3.2078,2019.4,2018.8,3.2078]
[1742729239901,4.3108,2019.3,2018.9,1.3615]
[1742729240200,3.2078,2019.1,2018.6,40.8]
[1742729240395,3.617,2019.0,2018.6,40.8]
[1742729240599,0.7003,2018.9,2018.7,1.3615]
[1742729240798,2.6198,2018.9,2018.6,0.00743587]
[1742729241202,1.2797,2018.8,2018.6,0.00743587]
[1742729241503,3.613,2018.7,2018.6,0.00743587]
[1742729247405,1.2797,2018.8,2018.6,0.00743587]
[1742729247609,1.2797,2018.8,2018.6,3.21523587]
[1742729247815,1.2797,2018.8,2018.7,0.6868]
[1742729248113,1.2797,2018.8,2018.7,2.7477]
[1742729248315,3.588,2018.9,2018.7,2.7477]
[1742729248608,3.588,2018.9,2018.8,1.3735]
[1742729252518,3.588,2018.9,2018.7,1.3742]
[1742729252707,2.0252,2018.8,2018.7,1.3442]
[1742729253513,5.233,2018.8,2018.6,0.00743587]
[1742729253813,1.3819,2018.7,2018.6,0.00743587]
[1742729254016,2.0509,2018.7,2018.6,0.00743587]
[1742729254621,3.572,2018.7,2018.6,0.00743587]
[1742729254811,3.575,2018.8,2018.6,3.21523587]
[1742729255120,3.576,2018.8,2018.7,1.3051]
[1742729255816,3.573,2018.8,2018.7,1.3051]
[1742729257614,3.2078,2019.1,2018.7,1.3051]
[1742729257817,6.7728,2019.1,2018.8,1.3393]
[1742729258120,6.7728,2019.1,2018.9,1.3959]
[1742729258819,3.562,2019.2,2018.9,1.3959]
[1742729259021,48.9858,2019.3,2018.9,1.3959]
[1742729259215,3.562,2019.2,2018.9,1.3959]
[1742729260321,1.2694,2019.1,2018.9,42.1959]
[1742729260920,1.2694,2019.1,2018.9,1.3959]
[1742729261122,3.562,2019.2,2018.9,1.3959]
[1742729261430,4.8795,2019.2,2018.9,1.3959]
[1742729262222,4.8795,2019.2,2018.9,4.6037]
[1742729262932,3.562,2019.2,2018.9,4.6037]
[1742729263623,3.545,2019.2,2018.9,4.6037]
[1742729264328,4.8327,2019.2,2018.9,4.6037]
[1742729264732,4.8327,2019.2,2019.0,1.2875]
[1742729264931,1.2877,2019.1,2019.0,1.2875]
[1742729266333,3.545,2019.2,2019.0,1.2875]
[1742729267332,3.2078,2019.6,2019.0,1.2875]
[1742729267532,3.534,2019.5,2019.0,1.2875]
[1742729267831,4.8301,2019.5,2019.0,1.2875]
[1742729268135,1.2961,2019.4,2019.0,1.2875]
[1742729269536,4.8301,2019.5,2019.0,1.2875]
[1742729269839,1.2961,2019.4,2019.0,1.2875]
[1742729270535,3.524,2019.5,2019.0,1.2875]
[1742729270743,1.314,2019.4,2019.0,1.2875]
[1742729270945,3.524,2019.5,2019.0,1.2875]
[1742729271237,4.838,2019.5,2019.0,1.2875]
[1742729271938,1.314,2019.5,2019.0,1.2875]
[1742729272543,6.7248,2019.6,2019.2,3.2078]
[1742729272738,4.5218,2019.6,2019.3,2.0003]
[1742729272940,1.314,2019.5,2019.4,1.3303]
[1742729273439,3.2078,2019.6,2019.4,1.3303]
[1742729273641,0.00743587,2019.7,2019.5,3.2078]
[1742729273842,0.00743587,2019.7,2019.6,1.3851]
[1742729276237,0.00743587,2019.7,2019.6,2.0486]
[1742729276437,3.5,2020.1,2019.6,2.0486]
[1742729276639,3.5,2020.1,2019.9,3.2078]
[1742729276840,3.5,2020.1,2020.0,1.3453]
[1742729277049,4.7697,2020.1,2020.0,1.3453]
[1742729278143,3.5,2020.1,2020.0,1.3453]
[1742729278443,45.79543587,2020.3,2020.0,1.3453]
[1742729278444,1.2697,2020.2,2020.0,1.3453]
[1742729278642,0.00743587,2020.3,2020.1,0.6431]
[1742729278841,0.00743587,2020.3,2020.2,1.3453]
[1742729279043,0.00743587,2020.3,2020.2,4.5531]
[1742729279749,0.00743587,2020.3,2020.2,5.2457]
[1742729280550,3.2078,2021.0,2020.2,5.2457]
[1742729280848,3.2078,2021.0,2020.3,1.3463]
[1742729280849,1.2641,2020.6,2020.3,1.3463]
[1742729283239,1.2641,2020.6,2020.2,3.2078]
[1742729283438,0.6451,2020.5,2020.2,3.2078]
[1742729283752,4.8661,2020.4,2020.2,3.2078]
[1742729284049,1.3811,2020.3,2020.2,3.2078]
[1742729285350,3.483,2020.6,2020.2,3.2078]
[1742729285546,0.00743587,2020.7,2020.3,1.3061]
[1742729285744,0.00743587,2020.7,2020.5,3.2078]
[1742729287144,1.35803587,2020.7,2020.5,3.2078]
[1742729287344,4.84903587,2020.7,2020.5,3.2078]
[1742729287850,1.3506,2020.6,2020.5,3.2078]
[1742729288349,1.3506,2020.6,2020.1,3.2078]
[1742729288547,1.283,2020.5,2020.1,3.2078]
[1742729288744,4.8646,2020.4,2020.1,3.2078]
[1742729288944,1.3726,2020.3,2020.1,3.2078]
[1742729289647,4.8616,2020.3,2020.1,3.2078]
[1742729289841,0.6335,2020.2,2020.1,3.2078]
[1742729290043,2.0061,2020.2,2020.1,3.2078]
[1742729291253,4.8576,2020.2,2020.1,3.2078]
[1742729292751,1.3726,2020.2,2020.1,3.2078]
[1742729293144,2.0267,2020.2,2020.1,3.2078]
[1742729297447,5.4927,2020.2,2020.1,3.2078]
[1742729298452,5.4917,2020.2,2020.1,3.2078]
[1742729299955,2.0267,2020.2,2020.1,3.2078]
[1742729300161,5.4887,2020.2,2020.1,3.2078]
[1742729303358,5.4887,2020.2,2019.8,0.00743587]
[1742729303560,1.982,2020.1,2019.8,0.00743587]
[1742729303856,1.982,2020.1,2019.8,1.40013587]
[1742729303857,1.2902,2020.0,2019.8,1.40013587]
[1742729304057,3.45,2019.9,2019.8,1.40013587]
[1742729304254,4.0891,2019.9,2019.8,0.00743587]
[1742729305558,4.0891,2019.9,2019.8,1.40013587]
[1742729306353,3.45,2019.9,2019.8,1.40013587]
[1742729306557,3.45,2019.9,2019.8,2.07173587]
[1742729307461,3.44,2019.9,2019.8,2.07173587]
[1742729308555,3.436,2019.9,2019.8,2.07173587]
[1742729309960,1.2902,2020.0,2019.8,0.00743587]
[1742729310170,3.432,2019.9,2019.8,1.32253587]
[1742729311264,3.429,2019.9,2019.8,1.32253587]
[1742729312262,3.426,2019.9,2019.8,1.32253587]
[1742729312453,4.1133,2019.9,2019.8,1.32253587]
[1742729313768,0.6873,2019.9,2019.8,1.32253587]
[1742729314066,4.1083,2019.9,2019.8,0.00743587]
[1742729314566,4.1083,2019.9,2019.8,1.29563587]
[1742729314864,4.1083,2019.9,2019.8,0.00743587]
[1742729315170,4.1083,2019.9,2018.4,9.796]
[1742729315171,7.42397827,2019.9,2019.2,1.9846]
[1742729315465,2.16157827,2019.8,2019.3,1.2882]
[1742729315767,1.3038,2019.7,2019.3,1.2882]
[1742729316061,3.419,2019.6,2019.3,1.2882]
[1742729316369,3.419,2019.6,2019.3,1.29563587]
[1742729317865,3.419,2019.6,2019.4,3.2078]
[1742729318066,3.419,2019.6,2019.5,1.9173]
[1742729318265,3.419,2019.6,2019.5,2.5985]
[1742729318569,3.415,2019.6,2019.5,2.5985]
[1742729319576,3.41943587,2019.7,2019.5,2.5985]
[1742729319867,3.41943587,2019.7,2019.6,1.2627]
[1742729320873,3.41943587,2019.7,2019.5,1.903]
[1742729321056,1.3804,2019.6,2019.5,2.5443]
[1742729321256,1.3804,2019.6,2019.5,1.2816]
[1742729323272,4.7864,2019.6,2019.5,1.2816]
[1742729327275,1.3804,2019.6,2019.5,1.2816]
[1742729327464,4.7774,2019.6,2019.5,1.2816]
[1742729328578,4.7774,2019.6,2019.5,0.6403]
[1742729328876,4.7774,2019.6,2019.3,0.00743587]
[1742729329078,1.3315,2019.5,2019.3,0.00743587]
[1742729329282,3.397,2019.6,2019.3,0.00743587]
[1742729330478,1.33893587,2019.7,2019.3,0.00743587]
[1742729330675,3.389,2019.5,2019.3,0.00743587]
[1742729330880,3.389,2019.5,2019.4,3.2078]
[1742729332574,1.33893587,2019.7,2019.4,3.2078]
[1742729332783,3.384,2019.6,2019.5,0.6402]
[1742729333585,1.33893587,2019.7,2019.5,0.6402]
[1742729333878,3.382,2019.6,2019.5,0.6402]
[1742729335182,1.33893587,2019.7,2019.5,0.6402]
[1742729335383,3.379,2019.6,2019.5,0.6402]
[1742729336211,1.33893587,2019.7,2019.5,0.6402]
[1742729336423,3.376,2019.6,2019.5,0.6402]
[1742729337811,1.33893587,2019.7,2019.5,0.6402]
[1742729338107,3.372,2019.6,2019.5,0.6402]
[1742729339889,3.372,2019.6,2019.5,2.0416]
[1742729341491,4.7314,2019.6,2019.5,1.4014]
[1742729343488,5.67183131,2019.6,2019.5,1.4014]
[1742729344687,4.7314,2019.6,2019.5,1.4014]
[1742729345399,4.0464,2019.6,2019.5,1.4014]
[1742729346601,8.74136089,2019.6,2019.3,0.00743587]
[1742729346790,2.19527261,2019.5,2019.3,0.00743587]
[1742729346990,4.7288,2019.4,2019.3,0.00743587]
[1742729347591,6.21586313,2019.4,2019.3,0.00743587]
[1742729347994,7.15657693,2019.4,2019.3,0.00743587]
[1742729352105,7.15657693,2019.4,2019.0,1.2665]